bitfinex/quotes_ETHUSD_20230110
["timestamp","ask_amount","ask_price","bid_price","bid_amount"]
[1673388012040,14.69869209,1339.7,1339.6,0.73861786]
[1673388012820,22.16304209,1339.7,1339.6,0.73861786]
[1673388013089,22.72433476,1339.7,1339.6,0.73861786]
[1673388013396,25.41246455,1339.7,1339.6,0.73861786]
[1673388013995,22.61907651,1339.7,1339.6,0.73861786]
[1673388014868,22.65604435,1339.7,1339.6,0.73861786]
[1673388015802,23.21614435,1339.7,1339.6,0.73861786]
[1673388015977,22.65604435,1339.7,1339.6,0.73861786]
[1673388016439,15.19169435,1339.7,1339.6,0.73861786]
[1673388016969,22.65604435,1339.7,1339.6,0.73861786]
[1673388017178,17.98573147,1339.7,1339.6,0.73861786]
[1673388018290,22.65604435,1339.7,1339.6,0.73861786]
[1673388019027,26.01037808,1339.7,1339.6,0.73861786]
[1673388020079,22.65604435,1339.7,1339.6,0.73861786]
[1673388020288,26.01037808,1339.7,1339.6,0.73861786]
[1673388021360,18.54602808,1339.7,1339.6,0.73861786]
[1673388021968,26.01037808,1339.7,1339.6,0.73861786]
[1673388023353,18.54602808,1339.7,1339.6,0.73861786]
[1673388024547,15.19169435,1339.7,1339.6,0.73861786]
[1673388026594,18.54602808,1339.7,1339.6,0.73861786]
[1673388027272,15.19169435,1339.7,1339.6,0.73861786]
[1673388030160,18.54602808,1339.7,1339.6,0.73861786]
[1673388030370,15.19169435,1339.7,1339.6,0.73861786]
[1673388030806,29.80803872,1339.7,1339.6,0.73861786]
[1673388033371,18.54602808,1339.7,1339.6,0.73861786]
[1673388034368,18.54602808,1339.7,1339.6,0.73621913]
[1673388039706,29.80803872,1339.7,1339.6,0.73621913]
[1673388043486,26.45370499,1339.7,1339.6,0.73621913]
[1673388046535,26.45071534,1339.7,1339.6,0.73621913]
[1673388047159,30.35059951,1339.7,1339.6,0.73621913]
[1673388047376,26.45071534,1339.7,1339.6,0.73621913]
[1673388047899,32.02659951,1339.7,1339.6,0.73621913]
[1673388049220,28.12671534,1339.7,1339.6,0.73621913]
[1673388050735,32.02659951,1339.7,1339.6,0.73621913]
[1673388052693,28.12671534,1339.7,1339.6,0.73621913]
[1673388052849,28.87883435,1339.7,1339.6,0.73621913]
[1673388053061,43.43893435,1339.7,1339.6,0.73621913]
[1673388053232,48.05445067,1339.7,1339.6,0.73621913]
[1673388053444,49.72545067,1339.7,1339.6,0.73621913]
[1673388053699,49.95545067,1339.7,1339.6,0.73621913]
[1673388054583,48.33993435,1339.7,1339.6,0.73621913]
[1673388054844,52.25410511,1339.7,1339.6,0.73621913]
[1673388058957,10.88464811,1339.8,1339.6,0.73621913]
[1673388059169,5.03187634,1339.7,1339.6,0.73621913]
[1673388059381,17.7240364,1339.7,1339.6,0.73621913]
[1673388059952,14.9287,1339.7,1339.6,0.73621913]
[1673388060443,25.74754811,1339.7,1339.6,0.73621913]
[1673388060763,22.39305,1339.7,1339.6,0.73621913]
[1673388060923,25.74754811,1339.7,1339.6,0.73621913]
[1673388061126,22.39305,1339.7,1339.6,0.73621913]
[1673388064019,25.74754811,1339.7,1339.6,0.73621913]
[1673388064229,31.090034,1339.7,1339.6,0.73621913]
[1673388064545,34.92466248,1339.7,1339.6,0.73621913]
[1673388068013,34.92466248,1339.7,1339.6,0.73414271]
[1673388068403,34.92466248,1339.7,1339.6,0.7298841]
[1673388069385,34.92466248,1339.7,1339.6,0.72562315]
[1673388070274,34.92466248,1339.7,1339.6,0.7213622]
[1673388071427,34.92466248,1339.7,1339.6,0.71433227]
[1673388072478,34.92466248,1339.7,1339.6,0.70730221]
[1673388073427,34.92466248,1339.7,1339.6,0.70026938]
[1673388073632,31.57016437,1339.7,1339.6,0.70026938]
[1673388074285,31.57016437,1339.7,1339.6,0.69323694]
[1673388075037,34.92460854,1339.7,1339.6,0.69323694]
[1673388075373,34.92460854,1339.7,1339.6,0.68593183]
[1673388076402,34.92460854,1339.7,1339.6,0.67889743]
[1673388077493,34.92460854,1339.7,1339.6,0.67159088]
[1673388077630,31.57016437,1339.7,1339.6,0.67159088]
[1673388078284,32.32228338,1339.7,1339.6,0.66455504]
[1673388079423,33.98328338,1339.7,1339.6,0.65724732]
[1673388080359,33.98328338,1339.7,1339.6,0.65020995]
[1673388081364,33.98328338,1339.7,1339.6,0.64290158]
[1673388082101,33.98528338,1339.7,1339.6,0.64290158]
[1673388082408,37.33865472,1339.7,1339.6,0.63586391]
[1673388083530,37.33865472,1339.7,1339.6,0.62882585]
[1673388085435,37.33859318,1339.7,1339.6,0.62178779]
[1673388085874,35.67759318,1339.7,1339.6,0.62178779]
[1673388086095,36.23645414,1339.7,1339.6,0.62178779]
[1673388086246,36.23645414,1339.7,1339.6,0.61474973]
[1673388087351,36.79655414,1339.7,1339.6,0.60769731]
[1673388088386,36.79655414,1339.7,1339.6,0.60064528]
[1673388089309,36.79655414,1339.7,1339.6,0.59359393]
[1673388089659,37.02655414,1339.7,1339.6,0.59359393]
[1673388089868,37.78838338,1339.7,1339.6,0.59359393]
[1673388090238,37.78838338,1339.7,1339.6,0.58654258]
[1673388091316,37.78838338,1339.7,1339.6,0.57950671]
[1673388092301,41.70168186,1339.7,1339.6,0.57950671]
[1673388092519,41.70168186,1339.7,1339.6,0.57247084]
[1673388093354,41.70168186,1339.7,1339.6,0.56543644]
[1673388093740,40.94956285,1339.7,1339.6,0.56543644]
[1673388094287,41.70168186,1339.7,1339.6,0.55840174]
[1673388095297,41.70168186,1339.7,1339.6,0.55136939]
[1673388095764,41.7017092,1339.7,1339.6,0.55136939]
[1673388096349,41.7017092,1339.7,1339.6,0.54432262]
[1673388097220,37.78838338,1339.7,1339.6,0.54432262]
[1673388097451,41.70142271,1339.7,1339.6,0.53727833]
[1673388098253,41.70142271,1339.7,1339.6,0.53023404]
[1673388098674,37.78838338,1339.7,1339.6,0.53023404]
[1673388098889,41.70072211,1339.7,1339.6,0.53023404]
[1673388099345,41.70072211,1339.7,1339.6,0.52319285]
[1673388099557,37.78838338,1339.7,1339.6,0.52319285]
[1673388100405,37.78838338,1339.7,1339.6,0.51615166]
[1673388101503,37.78838338,1339.7,1339.6,0.5091139]
[1673388102125,37.03626437,1339.7,1339.6,0.5091139]
[1673388102341,37.78838338,1339.7,1339.6,0.50207649]
[1673388102657,41.70037077,1339.7,1339.6,0.50207649]
[1673388103321,41.70037077,1339.7,1339.6,0.49504466]
[1673388104371,41.70037077,1339.7,1339.6,0.48801283]
[1673388105285,41.70037077,1339.7,1339.6,0.4809875]
[1673388106455,41.70037077,1339.7,1339.6,0.47396217]
[1673388107068,37.78838338,1339.7,1339.6,0.47396217]
[1673388107661,42.4038997,1339.7,1339.6,0.46694219]
[1673388107968,37.78838338,1339.7,1339.6,0.46694219]
[1673388108328,42.4038997,1339.7,1339.6,0.45992182]
[1673388108802,37.78838338,1339.7,1339.6,0.45992182]
[1673388108972,42.4038997,1339.7,1339.6,0.45992182]
[1673388109431,42.4038997,1339.7,1339.6,0.45290249]
[1673388109593,37.78838338,1339.7,1339.6,0.45290249]
[1673388110486,37.78838338,1339.7,1339.6,0.44588316]
[1673388110487,41.70299622,1339.7,1339.6,0.44588316]
[1673388111062,37.78838338,1339.7,1339.6,0.44588316]
[1673388111277,37.78838338,1339.7,1339.6,0.43886465]
[1673388112444,37.78838338,1339.7,1339.6,0.43184614]
[1673388113222,41.70285969,1339.7,1339.6,0.43184614]
[1673388113430,37.78838338,1339.7,1339.6,0.42482825]
[1673388114423,37.78838338,1339.7,1339.6,0.41781075]
[1673388114424,37.03626437,1339.7,1339.6,0.41781075]
[1673388114649,37.78838338,1339.7,1339.6,0.41781075]
[1673388115321,44.0798997,1339.7,1339.6,0.40729746]
[1673388116386,44.0798997,1339.7,1339.6,0.39678417]
[1673388116669,43.32778069,1339.7,1339.6,0.39678417]
[1673388117257,44.0798997,1339.7,1339.6,0.39678417]
[1673388117607,44.0298997,1339.7,1339.6,0.38478737]
[1673388118415,44.0298997,1339.7,1339.6,0.37279057]
[1673388119274,44.0298997,1339.7,1339.6,0.36079377]
[1673388120411,44.0298997,1339.7,1339.6,0.34881088]
[1673388121417,44.0298997,1339.7,1339.6,0.33682817]
[1673388122145,39.41438338,1339.7,1339.6,0.33682817]
[1673388122668,44.03802362,1339.7,1339.6,0.32484546]
[1673388123193,43.28590461,1339.7,1339.6,0.32484546]
[1673388123412,44.03802362,1339.7,1339.6,0.31286275]
[1673388124666,44.03802362,1339.7,1339.6,0.30088001]
[1673388124883,0.05944595,1339.5,1339.2,0.14219711]
[1673388125074,9.21011289,1339.4,1339.3,0.002]
[1673388125262,32.96895225,1339.4,1339.2,0.14219711]
[1673388125476,6.79766064,1339.3,1339.2,0.14219711]
[1673388125720,10.99131044,1339.3,1339.2,0.14219711]
[1673388125877,34.14316945,1339.3,1339.2,0.09219711]
[1673388126355,45.48216945,1339.3,1339.2,0.09219711]
[1673388126575,51.69492872,1339.3,1339.2,0.09219711]
[1673388126870,42.57356122,1339.3,1339.2,0.09219711]
[1673388127078,47.57356122,1339.3,1339.2,0.09219711]
[1673388127400,43.66559035,1339.3,1339.2,0.08020065]
[1673388128457,43.66559035,1339.3,1339.2,0.06820419]
[1673388128608,46.45357107,1339.3,1339.2,0.06820419]
[1673388128820,46.45357107,1339.3,1339.0,0.66810315]
[1673388129165,16.23226008,1339.1,1339.0,0.66810315]
[1673388129375,21.75783357,1339.1,1339.0,0.66810315]
[1673388131037,23.4316479,1339.1,1339.0,0.66810315]
[1673388132001,30.8993479,1339.1,1339.0,0.66810315]
[1673388132499,23.4316479,1339.1,1339.0,0.66810315]
[1673388132704,30.8993479,1339.1,1339.0,0.66810315]
[1673388133164,23.4316479,1339.1,1339.0,0.66810315]
[1673388133487,31.65146691,1339.1,1339.0,0.66810315]
[1673388135369,33.32466202,1339.1,1339.0,0.66810315]
[1673388135592,38.43451252,1339.1,1339.0,0.66810315]
[1673388135802,39.78164251,1339.1,1339.0,0.66810315]
[1673388136132,40.34204251,1339.1,1339.0,0.66810315]
[1673388136276,42.78164251,1339.1,1339.0,0.66810315]
[1673388136485,57.71704251,1339.1,1339.0,0.66810315]
[1673388136918,54.92671741,1339.1,1339.0,0.66810315]
[1673388137592,57.71422802,1339.1,1339.0,0.65611967]
[1673388138482,57.71422802,1339.1,1339.0,0.64413619]
[1673388139354,57.71422802,1339.1,1339.0,0.63215272]
[1673388140635,57.71422802,1339.1,1339.0,0.62016925]
[1673388140874,58.27462802,1339.1,1339.0,0.62016925]
[1673388141467,58.27462802,1339.1,1339.0,0.60818578]
[1673388142559,58.27462802,1339.1,1339.0,0.59620231]
[1673388143359,58.27462802,1339.1,1339.0,0.58421841]
[1673388143787,60.5040621,1339.1,1339.0,0.58421841]
[1673388144436,60.5040621,1339.1,1339.0,0.57223494]
[1673388145503,60.5040621,1339.1,1339.0,0.56025147]
[1673388146029,62.1660621,1339.1,1339.0,0.56025147]
[1673388146395,66.6400621,1339.1,1339.0,0.548268]
[1673388146602,66.63898366,1339.1,1339.0,0.548268]
[1673388147270,50.04158366,1339.1,1339.0,0.548268]
[1673388147492,57.50928366,1339.1,1339.0,0.53628453]
[1673388147860,40.32929484,1339.1,1339.0,0.53628453]
[1673388148319,40.32929484,1339.1,1339.0,0.52430106]
[1673388148722,37.54286267,1339.1,1339.0,0.52430106]
[1673388148934,39.21498658,1339.1,1339.0,0.52430106]
[1673388149136,37.54286267,1339.1,1339.0,0.52430106]
[1673388149391,37.54286267,1339.1,1339.0,0.5123176]
[1673388149558,45.01056267,1339.1,1339.0,0.5123176]
[1673388149773,55.26469484,1339.1,1339.0,0.5123176]
[1673388150406,47.79699484,1339.1,1339.0,0.5003338]
[1673388151066,55.26469484,1339.1,1339.0,0.5003338]
[1673388151429,62.73239484,1339.1,1339.0,0.4883499]
[1673388152363,62.73239484,1339.1,1339.0,0.47636644]
[1673388152540,60.50298366,1339.1,1339.0,0.47636644]
[1673388152904,62.73408069,1339.1,1339.0,0.47636644]
[1673388153429,60.50298366,1339.1,1339.0,0.46438298]
[1673388153834,65.53883221,1339.1,1339.0,0.46438298]
[1673388154335,65.53883221,1339.1,1339.0,0.45239952]
[1673388155269,65.53883221,1339.1,1339.0,0.44041606]
[1673388156158,65.53883221,1339.1,1338.9,2.95810065]
[1673388156159,9.11002169,1339.0,1338.9,2.95810065]
[1673388156371,9.11002169,1339.0,1338.9,0.00010065]
[1673388156372,45.84986008,1339.0,1338.9,0.00010065]
[1673388156580,46.60197909,1339.0,1338.9,0.00010065]
[1673388157477,2.5,1338.9,1338.6,18.81791428]
[1673388157683,14.0,1338.7,1338.6,18.81791428]
[1673388157941,26.99523988,1338.7,1338.6,0.071]
[1673388158120,26.99323988,1338.7,1338.5,2.95888035]
[1673388158328,3.79766064,1338.6,1338.5,2.95888035]
[1673388170298,23.20958924,1338.7,1338.5,2.95888035]
[1673388170515,19.52330988,1338.7,1338.5,10.42992035]
[1673388170728,19.52330988,1338.7,1338.5,10.50092035]
[1673388171469,19.52330988,1338.7,1338.5,3.02988035]
[1673388171671,19.52330988,1338.7,1338.5,2.95888035]
[1673388172094,19.52330988,1338.7,1338.5,10.42984035]
[1673388172302,19.52330988,1338.7,1338.5,10.50084035]
[1673388172555,17.84966064,1338.7,1338.5,17.97188035]
[1673388173866,17.84966064,1338.7,1338.5,10.50084035]
[1673388174401,19.52330988,1338.7,1338.5,10.50084035]
[1673388176868,21.7548422,1338.7,1338.5,10.50084035]
[1673388177025,24.57442287,1338.7,1338.5,3.02988035]
[1673388177239,24.57442287,1338.7,1338.5,2.95888035]
[1673388177446,25.32654188,1338.7,1338.5,2.95888035]
[1673388178123,23.09500956,1338.7,1338.5,10.42991035]
[1673388178296,23.09500956,1338.7,1338.5,10.50091035]
[1673388179024,23.65550956,1338.7,1338.5,10.50091035]
[1673388179236,3.79766064,1338.6,1338.5,3.02988035]
[1673388179552,6.1632116,1338.6,1338.5,2.95888035]
[1673388179762,3.84966064,1338.6,1338.5,2.95888035]
[1673388180002,3.79766064,1338.6,1338.5,2.95563755]
[1673388184427,17.05226825,1338.7,1338.5,2.95563755]
[1673388184592,20.83592889,1338.7,1338.5,2.95563755]
[1673388187223,25.73206333,1338.7,1338.5,2.95563755]
[1673388190825,24.97994432,1338.7,1338.5,2.95563755]
[1673388191443,27.21147664,1338.7,1338.5,2.95563755]
[1673388193348,1.67364924,1338.6,1338.5,2.95563755]
[1673388194601,5.47130988,1338.6,1338.5,2.95563755]
[1673388194814,8.03518564,1338.6,1338.5,2.95563755]
[1673388195322,8.03518564,1338.6,1338.5,4.80969913]
[1673388195543,5.52330988,1338.6,1338.5,4.80969913]
[1673388201019,5.52330988,1338.6,1338.5,2.95563755]
[1673388201423,7.7548422,1338.6,1338.5,2.95563755]
[1673388204917,7.7548422,1338.6,1338.5,2.95309703]
[1673388205239,7.75923444,1338.6,1338.5,2.95309703]
[1673388205454,11.01854442,1338.6,1338.5,2.95309703]
[1673388206888,9.34050294,1338.6,1338.5,2.95309703]
[1673388207109,11.01849294,1338.6,1338.5,2.95309703]
[1673388207475,11.57909294,1338.6,1338.5,2.95309703]
[1673388210388,9.90110294,1338.6,1338.5,2.95309703]
[1673388211517,9.34050294,1338.6,1338.5,2.95309703]
[1673388214138,11.01828972,1338.6,1338.5,2.95309703]
[1673388215821,8.7867574,1338.6,1338.5,2.95309703]
[1673388220683,9.3473574,1338.6,1338.5,10.42413703]
[1673388220897,9.3473574,1338.6,1338.5,3.02409703]
[1673388221063,9.3473574,1338.6,1338.5,2.95309703]
[1673388221484,11.57888972,1338.6,1338.5,2.95309703]
[1673388221693,11.01828972,1338.6,1338.5,2.95309703]
[1673388223840,9.34050294,1338.6,1338.5,2.95309703]
[1673388225153,16.58341377,1338.6,1338.5,2.95309703]
[1673388225364,36.43546837,1338.6,1338.5,2.95309703]
[1673388225732,33.08744062,1338.6,1338.5,2.95309703]
[1673388226161,36.43546837,1338.6,1338.5,2.95309703]
[1673388226392,33.08744062,1338.6,1338.5,2.95309703]
[1673388226687,33.08744062,1338.6,1338.5,2.95096232]
[1673388226838,36.43546837,1338.6,1338.5,2.95096232]
[1673388227301,36.43546837,1338.6,1338.5,0.17800874]
[1673388227622,33.08744062,1338.6,1338.5,0.17800874]
[1673388227940,5.52547129,1338.6,1338.5,15.12008874]
[1673388228149,7.75976196,1338.6,1338.5,7.72004874]
[1673388228515,3.96210132,1338.6,1338.5,15.19108874]
[1673388228730,3.91010132,1338.6,1338.5,15.19108874]
[1673388229309,3.91010132,1338.6,1338.5,7.72004874]
[1673388229882,3.91010132,1338.6,1338.5,22.66212874]
[1673388230202,1.67581065,1338.6,1338.5,22.66212874]
[1673388230982,1.67581065,1338.6,1338.5,7.72004874]
[1673388231195,3.91010132,1338.6,1338.5,7.72004874]
[1673388232770,3.91010132,1338.6,1338.5,15.19108874]
[1673388233143,1.67581065,1338.6,1338.5,15.19108874]
[1673388233349,3.91010132,1338.6,1338.5,15.19108874]
[1673388233603,1.67581065,1338.6,1338.5,15.19108874]
[1673388233965,3.91010132,1338.6,1338.5,15.19108874]
[1673388234298,3.91010132,1338.6,1338.5,7.72004874]
[1673388234512,6.04674457,1338.6,1338.5,0.24900874]
[1673388234767,6.09874457,1338.6,1338.5,0.17800874]
[1673388235685,0.052,1338.6,1338.5,32.38381808]
[1673388235927,1.68981065,1338.8,1338.6,1.11235503]
[1673388236111,1.68981065,1338.8,1338.7,7.46993]
[1673388236112,3.91010132,1338.8,1338.7,7.46993]
[1673388236327,1.67581065,1338.8,1338.7,24.0860435]
[1673388236873,3.97610132,1338.9,1338.7,24.0860435]
[1673388237036,3.91010132,1338.9,1338.7,24.0860435]
[1673388237733,1.67581065,1338.9,1338.7,24.0860435]
[1673388238929,1.67581065,1338.9,1338.7,25.7620435]
[1673388239144,1.67581065,1338.9,1338.8,2.57620435]
[1673388239355,1.74181065,1339.0,1338.8,28.31831435]
[1673388239611,3.97610132,1339.1,1338.9,24.08243]
[1673388239834,3.91010132,1339.1,1338.9,24.15343]
[1673388240133,14.0,1339.0,1338.9,28.82945044]
[1673388240348,15.67781065,1339.0,1338.9,28.82945044]
[1673388240506,1.79181065,1339.0,1338.9,28.82945044]
[1673388240719,15.78981065,1339.0,1338.9,28.82945044]
[1673388240938,15.79181065,1339.0,1338.9,28.82945044]
[1673388241771,14.116,1339.0,1338.9,28.82945044]
[1673388243993,0.116,1339.0,1338.9,28.82945044]
[1673388244203,0.116,1339.0,1338.9,28.82745044]
[1673388244459,0.114,1339.0,1338.9,28.82945044]
[1673388245658,0.114,1339.0,1338.9,27.15345044]
[1673388246196,0.114,1339.0,1338.9,28.81945044]
[1673388246410,0.114,1339.0,1338.9,32.48113978]
[1673388246621,0.114,1339.0,1338.9,28.81945044]
[1673388251018,0.114,1339.0,1338.9,30.49545044]
[1673388252516,9.114,1339.0,1338.9,30.49545044]
[1673388252741,9.116,1339.0,1338.9,30.49545044]
[1673388255753,9.116,1339.0,1338.9,28.82945044]
[1673388256211,9.116,1339.0,1338.9,28.82611808]
[1673388260005,9.116,1339.0,1338.9,28.81611808]
[1673388261948,7.13912506,1339.0,1338.9,28.81611808]
[1673388262200,7.17012506,1339.0,1338.9,28.81611808]
[1673388262924,7.17012506,1339.0,1338.9,19.68464044]
[1673388263315,7.17012506,1339.0,1338.9,0.071]
[1673388263532,7.17012506,1339.0,1338.9,22.40643]
[1673388263734,7.17012506,1339.0,1338.9,22.47743]
[1673388271036,7.16788107,1339.0,1338.9,22.47743]
[1673388278175,8.84369172,1339.0,1338.9,22.47743]
[1673388278974,11.07798239,1339.0,1338.9,0.071]
[1673388279184,11.07798239,1339.0,1338.8,10.8932]
[1673388279185,18.54623239,1339.0,1338.8,10.9642]
[1673388279435,11.07798239,1339.0,1338.8,10.9642]
[1673388280272,1.67581065,1338.9,1338.8,0.071]
[1673388280604,20.41010132,1338.9,1338.7,22.4093]
[1673388280827,17.91210132,1338.9,1338.8,7.46937]
[1673388281032,21.41968964,1338.9,1338.8,7.54037]
[1673388281915,19.18539897,1338.9,1338.8,7.54037]
[1673388282124,17.91210132,1338.9,1338.8,7.54037]
[1673388282389,0.002,1338.9,1338.8,22.47911]
[1673388282697,23.40409172,1339.0,1338.8,22.47911]
[1673388285087,8.84369172,1339.0,1338.8,22.47911]
[1673388285308,7.16788107,1339.0,1338.8,22.47911]
[1673388285503,7.16788107,1339.0,1338.9,2.247911]
[1673388285712,7.16988107,1339.0,1338.9,24.654341]
[1673388285960,7.16788107,1339.0,1338.9,24.725341]
[1673388286849,8.84369172,1339.0,1338.9,2.318911]
[1673388287063,8.84369172,1339.0,1338.8,1.676]
[1673388287064,8.84369172,1339.0,1338.8,9.21605]
[1673388287270,8.84369172,1339.0,1338.8,24.15453]
[1673388287740,8.84369172,1339.0,1338.8,22.47853]
[1673388292573,8.84369172,1339.0,1338.8,7.54005]
[1673388293264,8.84369172,1339.0,1338.8,22.47879]
[1673388293898,11.07798239,1339.0,1338.8,15.00646791]
[1673388294221,11.07798239,1339.0,1338.8,15.00846791]
[1673388294435,11.07798239,1339.0,1338.8,22.47783791]
[1673388296150,1.67581065,1338.9,1338.8,22.47783791]
[1673388297002,9.46617174,1339.0,1338.8,22.47783791]
[1673388297003,11.14198239,1339.0,1338.8,22.47783791]
[1673388297307,1.67581065,1338.9,1338.8,22.47783791]
[1673388297527,11.14198239,1339.0,1338.8,22.47783791]
[1673388297675,11.07798239,1339.0,1338.8,22.47783791]
[1673388298319,1.67581065,1338.9,1338.8,22.47783791]
[1673388301062,11.14198239,1339.0,1338.8,22.47783791]
[1673388301278,11.07798239,1339.0,1338.8,22.47783791]
[1673388301825,11.07798239,1339.0,1338.8,15.00846791]
[1673388302134,11.07798239,1339.0,1338.8,22.47783791]
[1673388302771,11.07798239,1339.0,1338.8,0.07004791]
[1673388302772,1.67581065,1338.9,1338.8,0.07004791]
[1673388302976,3.91010132,1338.9,1338.7,26.02652791]
[1673388303191,3.91010132,1338.9,1338.7,40.96603791]
[1673388303192,1.67581065,1338.9,1338.7,40.96603791]
[1673388304251,3.91010132,1338.9,1338.7,33.49615791]
[1673388304458,1.67581065,1338.9,1338.7,40.96608791]
[1673388305409,1.67581065,1338.9,1338.7,28.1272442]
[1673388305622,1.67581065,1338.9,1338.7,23.17235791]
[1673388306592,1.67581065,1338.8,1338.7,0.07004791]
[1673388306926,3.97610132,1338.9,1338.6,16.12250294]
[1673388307236,1.67581065,1338.8,1338.6,16.12250294]
[1673388307982,1.67581065,1338.8,1338.6,20.68933711]
[1673388308288,1.67581065,1338.8,1338.7,7.46991]
[1673388308442,1.67581065,1338.8,1338.7,7.53995791]
[1673388309707,3.97610132,1338.9,1338.7,7.53995791]
[1673388309917,1.67581065,1338.8,1338.7,7.53891]
[1673388310177,1.67581065,1338.8,1338.7,7.53995791]
[1673388310392,3.97610132,1338.9,1338.7,7.53995791]
[1673388310605,3.91010132,1338.9,1338.7,7.53995791]
[1673388310975,1.67581065,1338.9,1338.7,7.53995791]
[1673388312337,1.67581065,1338.9,1338.7,15.00988791]
[1673388312607,1.67581065,1338.9,1338.7,22.47981791]
[1673388313720,3.91010132,1338.9,1338.7,22.47981791]
[1673388314145,1.67581065,1338.9,1338.7,15.00988791]
[1673388314356,6.07274561,1338.9,1338.7,15.00988791]
[1673388314542,6.07474561,1338.9,1338.7,15.00988791]
[1673388315593,3.91210132,1338.9,1338.7,15.00988791]
[1673388315804,3.91010132,1338.9,1338.7,15.00988791]
[1673388316689,3.91010132,1338.9,1338.7,15.00772565]
[1673388317959,1.67581065,1338.8,1338.7,15.00772565]
[1673388318152,2.23429067,1338.9,1338.7,15.00772565]
[1673388318153,3.97610132,1338.9,1338.7,15.00772565]
[1673388318364,5.90516455,1338.9,1338.7,15.00772565]
[1673388318620,5.90716455,1338.9,1338.7,15.00772565]
[1673388319894,2.23429067,1338.8,1338.7,0.07004791]
[1673388320079,2.23429067,1338.8,1338.6,1.11235503]
[1673388320080,4.93898139,1338.8,1338.6,1.11235503]
[1673388320258,1.67566002,1338.7,1338.6,1.11235503]
[1673388320470,15.67566002,1338.7,1338.6,1.11235503]
[1673388320696,15.67766002,1338.7,1338.6,1.11235503]
[1673388321068,17.74572416,1338.7,1338.6,1.11235503]
[1673388321274,18.30622416,1338.7,1338.6,1.11235503]
[1673388322009,17.74572416,1338.7,1338.6,1.11235503]
[1673388323701,17.74572416,1338.7,1338.5,15.18951665]
[1673388323855,16.07006414,1338.7,1338.5,15.18951665]
[1673388324061,17.74572416,1338.7,1338.5,15.18951665]
[1673388324309,1.77457242,1338.6,1338.5,7.71878665]
[1673388324480,16.13406414,1338.7,1338.6,1.11241238]
[1673388324692,16.07006414,1338.7,1338.6,1.11241238]
[1673388327151,17.74572416,1338.7,1338.6,1.11241238]
[1673388328272,15.67766002,1338.7,1338.6,8.58290238]
[1673388328509,14.002,1338.7,1338.6,16.12344029]
[1673388328744,14.002,1338.7,1338.6,8.65295029]
[1673388329259,14.002,1338.7,1338.6,1.18246029]
[1673388329417,14.002,1338.7,1338.6,1.11241238]
[1673388330171,15.67766002,1338.7,1338.6,1.11241238]
[1673388336408,18.31390436,1338.7,1338.6,1.11241238]
[1673388337362,16.23816002,1338.7,1338.6,1.11241238]
[1673388339525,15.67766002,1338.7,1338.6,1.11241238]
[1673388339945,8.95990274,1338.0,1337.9,68.30407961]
[1673388340160,0.06,1338.5,1338.4,1.97767765]
[1673388340407,1.11704056,1338.6,1338.4,3.83175056]
[1673388340560,2.79270058,1338.6,1338.4,1.97767765]
[1673388341015,2.79270058,1338.6,1338.4,9.44924765]
[1673388341229,2.79270058,1338.6,1338.4,9.51524765]
[1673388341421,2.79270058,1338.6,1338.4,2.04367765]
[1673388341739,2.79270058,1338.6,1338.4,1.97767765]
[1673388342076,1.11704056,1338.5,1338.4,1.97767765]
[1673388342290,2.85870058,1338.6,1338.4,1.97767765]
[1673388342603,2.79270058,1338.6,1338.4,9.44927765]
[1673388342815,2.79270058,1338.6,1338.4,9.51527765]
[1673388343443,1.11704056,1338.6,1338.4,9.51527765]
[1673388348019,1.11704056,1338.6,1338.4,9.46527765]
[1673388351297,1.11704056,1338.6,1338.4,12.29620322]
[1673388353498,0.13,1338.5,1338.4,12.29620322]
[1673388353709,0.13,1338.5,1338.4,14.15026834]
[1673388353919,0.13,1338.5,1338.4,14.05026834]
[1673388357752,1.24704056,1338.5,1338.4,14.05026834]
[1673388361848,1.24704056,1338.5,1338.4,6.57866834]
[1673388362060,1.24704056,1338.5,1338.4,3.74774277]
[1673388362061,2.92270058,1338.5,1338.4,3.74774277]
[1673388362272,1.24704056,1338.5,1338.4,3.68174277]
[1673388363686,1.24704056,1338.5,1338.4,11.15334277]
[1673388363946,2.92270058,1338.5,1338.4,11.21934277]
[1673388364153,1.24704056,1338.5,1338.4,11.21934277]
[1673388364685,0.13,1338.5,1338.4,11.21934277]
[1673388364856,0.13,1338.5,1338.4,3.74774277]
[1673388365054,1.24783474,1338.5,1338.4,3.68174277]
[1673388365384,1.24783526,1338.5,1338.4,3.68174277]
[1673388365595,0.13,1338.5,1338.4,3.68174277]
[1673388366063,1.24780018,1338.5,1338.4,3.68174277]
[1673388366228,0.13,1338.5,1338.4,3.68174277]
[1673388366571,1.2477499,1338.5,1338.4,3.68174277]
[1673388366789,1.24775034,1338.5,1338.4,3.68174277]
[1673388366956,0.13,1338.5,1338.4,3.68174277]
[1673388367359,0.13,1338.5,1338.4,11.15334277]
[1673388367360,1.24776562,1338.5,1338.4,11.15334277]
[1673388367569,0.13,1338.5,1338.4,11.21934277]
[1673388368106,0.13,1338.5,1338.4,3.74774277]
[1673388368107,1.24779624,1338.5,1338.4,3.74774277]
[1673388368474,0.13,1338.5,1338.4,3.68174277]
[1673388368630,2.92338733,1338.5,1338.4,1.82767765]
[1673388368844,2.92338733,1338.5,1338.4,3.6818416]
[1673388370358,1.24764618,1338.5,1338.4,3.6818416]
[1673388370572,1.24763959,1338.5,1338.4,3.6818416]
[1673388370725,1.24764492,1338.5,1338.4,3.6818416]
[1673388370935,0.13,1338.5,1338.4,3.6818416]
[1673388371368,1.24763567,1338.5,1338.4,3.6818416]
[1673388371578,1.24766424,1338.5,1338.4,20.88423056]
[1673388371831,2.36534854,1338.5,1338.4,20.95023056]
[1673388372051,2.36535563,1338.5,1338.4,20.95023056]
[1673388372265,1.24766424,1338.5,1338.4,20.95023056]
[1673388372563,2.36535432,1338.5,1338.4,20.95023056]
[1673388372874,1.24766424,1338.5,1338.4,20.95023056]
[1673388373094,2.36536755,1338.5,1338.4,20.95023056]
[1673388373246,2.36535521,1338.5,1338.4,20.95023056]
[1673388373454,1.24766424,1338.5,1338.4,20.95023056]
[1673388373668,2.36540297,1338.5,1338.4,20.95023056]
[1673388373953,2.36544473,1338.5,1338.4,20.95023056]
[1673388374158,2.36545741,1338.5,1338.4,20.95023056]
[1673388374374,2.36546473,1338.5,1338.4,20.95023056]
[1673388374579,2.36547149,1338.5,1338.4,20.95023056]
[1673388374821,2.36547749,1338.5,1338.4,20.95023056]
[1673388375033,1.24766424,1338.5,1338.4,20.95023056]
[1673388375406,1.24766424,1338.5,1338.4,28.42183056]
[1673388375729,2.36544606,1338.5,1338.4,28.42183056]
[1673388375939,2.36546385,1338.5,1338.4,28.42183056]
[1673388376196,1.24766424,1338.5,1338.4,29.54104271]
[1673388376562,2.36545547,1338.5,1338.4,28.42183056]
[1673388376879,2.36545734,1338.5,1338.4,28.42183056]
[1673388377094,2.3654619,1338.5,1338.4,28.42183056]
[1673388377348,1.24766424,1338.5,1338.4,28.42183056]